Cogmind - Beta 15 @@@ ROGUE MODE // 2025.08.05 @ 18:28:45 Player: beanbun Result: Destroyed by C5-C0N(R) with Subdweller Shrapnel Launcher Performance ------------- Evolutions (0) 0 Regions Visited (3) 600 Robots Destroyed (11) 55 Value Destroyed (483) 483 Prototype IDs (0) 0 Alien Tech Used (0) 0 Bonus (0) 0 TOTAL SCORE: 1138 Bonus ------- None Cogmind --------- Core Integrity 0/250 Matter 11/300 Energy 85/100 System Corruption 2% Temperature Cool (6) Movement Core (400) Ox7 Location -10/Subcaves Parts ------- > --- POWER (1) -------- (None) > --- PROPULSION (2) --- (None) > --- UTILITY (2) ------ Large Storage Unit > --- WEAPON (2) ------- Medium Laser > --- INVENTORY (15) --- Light Nuclear Core EM Pulse Gun EM Pulse Gun EM Pulse Gun Particle Gun Light Cannon Mining Laser Peak State ------------ > --- POWER ------------ Light Nuclear Core > --- PROPULSION ------- Aluminum Leg Aluminum Leg > --- UTILITY ---------- Large Storage Unit Light Armor Plating > --- WEAPON ----------- Medium Laser Assault Rifle > --- INVENTORY -------- Ion Engine EM Pulse Gun EM Pulse Gun EM Pulse Gun Medium Laser Particle Gun Light Cannon Grenade Launcher Rocket Launcher Mining Laser [Rating: 10] Favorites ----------- Power Ion Engine Engine Ion Engine Power Core Light Nuclear Core Propulsion Wheel Leg Aluminum Leg Wheel Wheel Utility Large Storage Unit Storage Large Storage Unit Protection Light Armor Plating Weapon Assault Rifle Energy Gun Medium Laser Ballistic Gun Assault Rifle Ballistic Cannon Light Cannon Launcher Grenade Launcher Special Weapon Mining Laser Build | -11 -10 -10 -10 ------- Run | Yrd Mat Min Sub Slots Evolved . | . . . . Power . | . . . . Propulsion . | . . . . Utility . | . . . . Weapon . | . . . . Parts Attached 18 | 5 7 6 . Power 3 | 1 1 1 . Engine 2 | 1 1 . . Core 1 | . . 1 . Reactor . | . . . . Propulsion 5 | 2 . 3 . Treads . | . . . . Leg 2 | . . 2 . Wheel 3 | 2 . 1 . Hover . | . . . . Flight . | . . . . Utility 3 | . 3 . . Device . | . . . . Storage 2 | . 2 . . Processor . | . . . . Hackware . | . . . . Protection 1 | . 1 . . Artifact . | . . . . Weapon 7 | 2 3 2 . Energy Gun 2 | 1 1 . . Energy Cannon . | . . . . Ballistic Gun 1 | 1 . . . Ballistic Cannon 1 | . 1 . . Launcher 2 | . 1 1 . Special Weapon 1 | . . 1 . Impact Weapon . | . . . . Slashing Weapon . | . . . . Piercing Weapon . | . . . . Special Melee Weapon . | . . . . Unidentified Prototypes . | . . . . Parts Lost 9 | . . 1 8 Power 1 | . . . 1 Propulsion 3 | . . 1 2 Utility 1 | . . . 1 Weapon 4 | . . . 4 Highest Loss Streak 8 | . . 1 8 To Critical Strikes . | . . . . Average Backups 8 | . 4 9 9 Power . | . . . 1 Propulsion . | . . . . Utility . | . . . . Weapon 7 | . 4 8 8 Tool/Special . | . . . . Unused Backups 7 | . . 3 4 Power . | . . . . Propulsion . | . . . . Utility 3 | . . 3 . Weapon 4 | . . . 4 Tool/Special . | . . . . Average Slot Usage (%) 96 | . 96 99 78 Engine 12 | . 14 12 8 Core 1 | . . 1 . Leg 9 | . . 9 24 Wheel 17 | . 28 17 . Storage 14 | . 19 14 14 Protection 11 | . 5 14 7 Energy Gun 8 | . 5 8 8 Ballistic Gun 10 | . 14 9 9 Ballistic Cannon 1 | . 3 . . Launcher 7 | . 4 8 3 Peak Build Rating 10 | 5 7 10 8 Average Rating 7 | 3 6 8 6 On Entrance 5 | . 5 7 8 Naked Turns . | . . . . Heaviest Build 38 | 7 38 35 32 Greatest Support 20 | 20 20 20 20 Greatest Overweight (x) 3 | . 1 3 2 Average Overweight (x) . | . . 1 1 Largest Inventory Capacity 15 | 5 15 15 15 Average Capacity 14 | 5 14 15 15 Most Carried 11 | 3 9 11 10 Average Carried 8 | . 5 9 9 Final Capacity 15 | 5 15 15 15 Final Carried 10 | 1 9 10 7 Class Distribution -------------------- 100% | Mutant Dominant Class ---------------- Mutant | -10/Materials Mutant | -10/Mines Mutant | -10/Subcaves Resources | -11 -10 -10 -10 ----------- Run | Yrd Mat Min Sub Matter Collected 401 | 256 28 117 . Remotely . | . . . . Salvage Created 348 | 42 89 217 . Parts 21 | 2 5 14 . Haulers Intercepted . | . . . . Recyclers Shooed . | . . . . Parts Field Recycled . | . . . . Retrieved Matter . | . . . . Parts Self-Destructed 3 | . . . 3 Prevented . | . . . . Kills | -11 -10 -10 -10 ------- Run | Yrd Mat Min Sub Combat Hostiles Destroyed 10 | 1 3 6 . Guns 5 | 1 1 3 . AOE 5 | . 2 3 . Classes Destroyed 2 | 1 . 1 . Worker 1 | . . 1 . Grunt 10 | 1 3 6 . Best Kill Streak 2 | 1 2 2 . Combat Bots Only 2 | 1 2 2 . Max Kills in Single Turn 1 | 1 1 1 . Gunslinging . | . . . . Exploded 1 | . 1 1 . Melee . | . . . . Uniques/NPCs Destroyed . | . . . . Combat | -11 -10 -10 -10 -------- Run | Yrd Mat Min Sub Hostile Shots Fired 65 | 3 17 22 23 Missed 20 | 1 6 3 10 Hits 45 | 2 11 19 13 Projectile 45 | 2 11 19 13 AOE 8 | . . . 8 Critical Strikes 1 | . . 1 . Damage Taken 1026 | 20 123 357 526 Core 287 | . 45 83 159 Absorbed by Shields . | . . . . Core Remaining (%) 100 | 100 . . . Volleys Fired 36 | 2 12 17 5 Largest 2 | 2 2 2 2 Hottest 100 | 70 50 100 70 Shots Fired 64 | 4 23 31 6 Gun 38 | 4 12 16 6 Cannon 8 | . 8 . . Launcher 16 | . 3 13 . Special 2 | . . 2 . Kinetic 31 | 2 20 7 2 Thermal 17 | 2 . 11 4 Explosive 16 | . 3 13 . Electromagnetic . | . . . . Robot Hit Streak 7 | 3 6 7 2 Robot Miss Streak 5 | . 5 1 2 Penetration Max . | . . . . Secondary Targets . | . . . . Shots Hit Robots 32 | 3 11 14 4 Core Hits 21 | 2 6 12 1 Critical Kills . | . . . . Critical Parts Destroyed . | . . . . Critical Strikes 3 | . 1 1 1 Burn 2 | . . 1 1 Blast 1 | . 1 . . Melee Attacks . | . . . . Impact . | . . . . Slashing . | . . . . Piercing . | . . . . Sneak Attacks . | . . . . Combat Hostiles . | . . . . Follow-up Attacks . | . . . . Damage Inflicted 879 | 37 310 479 53 Guns 305 | 37 89 126 53 Cannons 35 | . 35 . . Explosions 448 | . 186 262 . Melee . | . . . . Ramming 91 | . . 91 . Kinetic 200 | 11 124 51 14 Thermal 140 | 26 . 75 39 Explosive 448 | . 186 262 . Electromagnetic . | . . . . Impact . | . . . . Slashing . | . . . . Piercing . | . . . . Highest Corruption 2 | . . 2 2 Average Corruption 2 | . . 2 2 Corruption Purged . | . . . . Corruption Blocked . | . . . . Effects 13 | . . 11 2 Message Errors 5 | . . 4 1 Matter Fused 3 | . . 2 1 Heat Flow Errors 1 | . . 1 . Data Loss (minor) 1 | . . 1 . Data Loss (major) 1 | . . 1 . Misfires 2 | . . 2 . Overload Shots . | . . . . Overflow Damage . | . . . . Projectiles . | . . . . Explosions . | . . . . Melee . | . . . . Knockbacks 2 | . 1 1 . Impact 1 | . . 1 . Kinetic 1 | . 1 . . Secondary . | . . . . Self-Inflicted Damage 91 | . . 91 . Shots 2 | . . 2 . Rammed 5 | . . 5 . Targets Rammed 7 | . . 7 . Kicked 2 | . . 2 . Crushed . | . . . . Highest Temperature 180 | 30 9 180 . Average Temperature 44 | 18 5 53 . Received Heat Transfer 279 | 12 66 171 30 Siege Activations . | . . . . Martial Activations . | . . . . Shielding Activations . | . . . . Robots Disrupted . | . . . . Combat Hostiles . | . . . . Robots Corrupted . | . . . . Combat Hostiles . | . . . . Parts Fried . | . . . . Impact Corruptions . | . . . . Robots Melted . | . . . . Combat Hostiles . | . . . . Parts Melted 1 | 1 . . . Heat Transferred 555 | 74 . 296 185 Parts Sabotaged . | . . . . Parts Stolen . | . . . . Parts Stripped . | . . . . Power Chain Reactions . | . . . . Alert | -11 -10 -10 -10 ------- Run | Yrd Mat Min Sub Maximum Alert Level . | . . . . Low Security (%) 100 | 100 100 100 . Level 1 . | . . . . Level 2 . | . . . . Level 3 . | . . . . Level 4 . | . . . . Level 5 . | . . . . High Security . | . . . . Max Security . | . . . . Peak Influence 186 | 20 53 186 . Initial 13 | . 13 9 . Average 49 | 2 17 61 . Influence Increases 459 | 20 96 343 . Destroy 0b10 Robot/C 200 | 20 60 120 . Destroy 0b10 Robot/NC 5 | . . 5 . Destroy Leader 50 | . 20 30 . Disable Machine 135 | . . 135 . Destroy Structure 69 | . 16 53 . Influence Decreases 459 | . 90 325 44 Entered New Map 48 | . 7 17 24 Time Decay 401 | . 83 298 20 Lost Part 10 | . . 10 . Squads Dispatched 1 | . 1 . . Investigation 1 | . 1 . . Extermination . | . . . . Reinforcement . | . . . . Assault . | . . . . Garrison . | . . . . Intercept . | . . . . Searches Triggered . | . . . . Construction Impeded . | . . . . Haulers Reinforced . | . . . . Active Scanning Responses . | . . . . Cargo Convoy Interrupts . | . . . . Stealth | -11 -10 -10 -10 --------- Run | Yrd Mat Min Sub Distress Signals . | . . . . Communications Jammed . | . . . . Distress Signals . | . . . . Times Spotted 15 | 1 3 6 5 Peak Tracking Total 3 | 1 2 2 3 Tactical Retreats . | . . . . Traps | -11 -10 -10 -10 ------- Run | Yrd Mat Min Sub Traps Triggered 1 | . 1 . . Indirectly . | . . . . Trap Hack Attempts . | . . . . Triggered . | . . . . Disarmed . | . . . . Reprogrammed . | . . . . Reused . | . . . . Traps Extracted . | . . . . Installed . | . . . . Triggered . | . . . . Machines | -11 -10 -10 -10 ---------- Run | Yrd Mat Min Sub Machines Disabled 9 | . . 9 . Max in Single Turn 4 | . . 4 . Machines Repaired . | . . . . Machines Dismantled . | . . . . Machines Sabotaged . | . . . . Overloaded Fab Kills . | . . . . Hacking | -11 -10 -10 -10 --------- Run | Yrd Mat Min Sub Machines Accessed 1 | . 1 . . Terminals . | . . . . Fabricators . | . . . . Repair Stations . | . . . . Recycling Units 1 | . 1 . . Scanalyzers . | . . . . Garrison Access . | . . . . Total Hacks 1 | . 1 . . Successful 1 | . 1 . . Failed . | . . . . Catastrophic . | . . . . Database Lockouts . | . . . . Manual . | . . . . Terminals . | . . . . Fabricators . | . . . . Repair Stations . | . . . . Recycling Units 1 | . 1 . . Scanalyzers . | . . . . Garrison Access . | . . . . Terminal Hacks . | . . . . Fabricator Hacks . | . . . . Repair Station Hacks . | . . . . Recycling Unit Hacks 1 | . 1 . . Process 1 | . 1 . . Scanalyzer . | . . . . Garrison Access Hacks . | . . . . Unauthorized Hacks . | . . . . Terminals . | . . . . Fabricators . | . . . . Repair Stations . | . . . . Recycling Units . | . . . . Scanalyzers . | . . . . Garrison Access . | . . . . Data Cores Recovered . | . . . . Used . | . . . . Hacking Detections 1 | . 1 . . Full Trace Events . | . . . . Feedback Events . | . . . . Feedback Blocked . | . . . . Robot Schematics Acquired . | . . . . Robots Built . | . . . . Authchips . | . . . . Time . | . . . . Total Robot Build Rating . | . . . . Part Schematics Acquired . | . . . . Parts Built . | . . . . Authchips . | . . . . Time . | . . . . Total Part Build Rating . | . . . . Parts Repaired . | . . . . Time . | . . . . Parts Recycled . | . . . . Recycled Matter 121 | . 121 . . Retrieved Matter . | . . . . Retrieved Components . | . . . . Parts Scanalyzed . | . . . . Part Schematics Acquired . | . . . . Parts Damaged . | . . . . Bothacking | -11 -10 -10 -10 ------------ Run | Yrd Mat Min Sub Used RIF Installer . | . . . . Robots Hacked . | . . . . Non-combat . | . . . . Combat . | . . . . Robot Hacks Applied . | . . . . Relay Couplers Released . | . . . . Fabnet Peak Effective % . | . . . . Robots Rewired . | . . . . Allies Hacked . | . . . . Hacks Repelled . | . . . . Allies | -11 -10 -10 -10 -------- Run | Yrd Mat Min Sub Total Allies . | . . . . Largest Group . | . . . . Highest-Rated Group . | . . . . Highest-Rated Ally . | . . . . Total Orders . | . . . . Ally Attacks . | . . . . Total Damage . | . . . . Kills . | . . . . Allies Corrupted . | . . . . Allies Melted . | . . . . Intel | -11 -10 -10 -10 ------- Run | Yrd Mat Min Sub Active Infowar (turns) . | . . . . Robot Analysis Total . | . . . . Derelict Logs Recovered 1 | . . 1 . Drone Launches . | . . . . Drone Recoveries . | . . . . Exploration | -11 -10 -10 -10 ------------- Run | Yrd Mat Min Sub Turns Passed 1375 | 74 230 921 150 Spaces Moved 1022 | 79 180 696 67 Core 21 | 21 . . . Treads . | . . . . Legs 238 | . . 171 67 Wheels 763 | 58 180 525 . Hover . | . . . . Flight . | . . . . Fastest Speed 50 | 50 80 95 190 Average Speed 117 | 72 93 119 202 Slowest Speed 330 | 80 95 330 260 Overloaded Moves . | . . . . Propulsion Burnouts . | . . . . Robots Hopped . | . . . . Potential Cave-ins . | . . . . Cave-ins Triggered . | . . . . Exploration Rate (%) 35 | 8 32 92 11 Regions Visited 3 Branch Regions 2 Pre-discovered Areas . | . . . . Known Exits Taken . | . . . . Unknown Exits Taken 3 | 1 1 1 . Scrap Searched . | . . . . Spaces Dug 21 | . . 21 . Terrain Destroyed 88 | . 10 78 . Melee . | . . . . Projectile 2 | . . 2 . AOE 86 | . 10 76 . Terrain Rammed . | . . . . Walls Destroyed . | . . . . Machines Disabled . | . . . . Actions | -11 -10 -10 -10 --------- Run | Yrd Mat Min Sub Total 1129 | 91 216 747 75 Wait 7 | . 6 1 . Move 1019 | 78 179 695 67 Hop . | . . . . Pick Up 26 | 6 11 9 . Fast Attach . | . . . . Attach 13 | 5 3 2 3 Detach . | . . . . Swap 13 | . 4 9 . Drop 8 | . 1 7 . Fire 36 | 2 12 17 5 Melee . | . . . . Ram 5 | . . 5 . Kick 2 | . . 2 . Crush . | . . . . Escape Stasis . | . . . . Rewire . | . . . . Trap . | . . . . Miscellaneous . | . . . . Route ------- -11/Scrapyard -10/Materials (discovered 2 exits: [*Mat] / [*Min]) -10/Mines (discovered 2 exits: [*Mat] / [*Sub]) -10/Subcaves History --------- Turn | Location | Event 2 | -11/Scrapyard | Met Revision 17 59 | -11/Scrapyard | Discovered new exit (range 8) 75 | -11/Scrapyard | Entered Materials 184 | -10/Materials | Discovered new exit (range 10) 242 | -10/Materials | Discovered new exit (range 16) 305 | -10/Materials | Build established: Mutant 305 | -10/Materials | Entered Mines 465 | -10/Mines | Learned Materials terminal intel 570 | -10/Mines | Discovered new exit (range 6) 622 | -10/Mines | Received a Rocket Launcher from a helpful Derelict 663 | -10/Mines | Core integrity fell below 50% 802 | -10/Mines | Discovered new exit (range 3) 1226 | -10/Mines | Entered Subcaves 1227 | -10/Subcaves | Approached by a straggling Scientist 1373 | -10/Subcaves | Core integrity fell below 20% 1376 | -10/Subcaves | Destroyed by C5-C0N(R) with Subdweller Shrapnel Launcher Last Messages --------------- P0-KT1(c): "I think it's somewhere west of here" Med. Laser destroyed. Lgt. Armor Plating destroyed. Rocket Launcher destroyed. Ion Engine destroyed. [Achievement: Oops] Assault Rifle destroyed. P0-KT1(c): "I think it's somewhere west of here" O8-R7U(R) destroyed. C5-C0N(R) affixes Scrap Shield Fragment to Scrap Shield. Subatomizers dissect the Wheel. Aluminum Leg destroyed. 9Y-X7P(R) destroyed. OZEXYXBSY